fUSD/lending_fUSD_20251210
["ID","MTS","AMOUNT","RATE_DAILY","PERIOD"]
[398069560,1765354249259,-53.15186503,0.00014061,2]
[398069561,1765354250039,-424.22777461,0.00014061,2]
[398069562,1765354250049,-500.0,0.00014061,2]
[398069563,1765354250059,-500.0,0.00014061,2]
[398069564,1765354250068,-500.0,0.00014061,2]
[398069565,1765354250077,-500.0,0.00014061,2]
[398069566,1765354250086,-507.21031304,0.00014061,2]
[398069567,1765354250096,-500.0,0.00014061,2]
[398069568,1765354250106,-500.0,0.00014061,2]
[398069569,1765354250115,-836.51,0.00014061,2]
[398069570,1765354250124,-500.0,0.00014061,2]
[398069571,1765354250133,-500.0,0.00014061,2]
[398069572,1765354250143,-500.0,0.00014061,2]
[398069573,1765354250152,-500.0,0.00014061,2]
[398069574,1765354250161,-500.0,0.00014061,2]
[398069575,1765354250171,-500.0,0.00014061,2]
[398069576,1765354250180,-500.0,0.00014061,2]
[398069577,1765354250189,-500.0,0.00014061,2]
[398069578,1765354250199,-500.0,0.00014061,2]
[398069579,1765354250209,-500.0,0.00014061,2]
[398069580,1765354250218,-525.01523443,0.00014061,2]
[398069581,1765354250228,-384.03735064,0.00014061,2]
[398069582,1765354250240,-115.96264936,0.00014061,2]
[398069583,1765354250249,-500.0,0.00014061,2]
[398069584,1765354250259,-500.0,0.00014061,2]
[398069585,1765354250268,-126.17557079,0.00014061,2]
[398069586,1765354250288,-373.82442921,0.00014061,2]
[398069587,1765354250298,-103.28595863,0.00014061,2]
[398069588,1765354250311,-305.76928752,0.00014061,2]
[398069589,1765354250320,-194.23071248,0.00014061,2]
[398069590,1765354250333,-377.89928752,0.00014061,2]
[398069591,1765354250342,-500.0,0.00014061,2]
[398069592,1765354250351,-500.0,0.00014061,2]
[398069593,1765354250361,-507.30646172,0.00014061,2]
[398069594,1765354250370,-500.0,0.00014061,2]
[398069595,1765354250380,-500.0,0.00014061,2]
[398069596,1765354250390,-500.0,0.00014061,2]
[398069597,1765354250400,-500.0,0.00014061,2]
[398069598,1765354250409,-500.0,0.00014061,2]
[398069599,1765354250419,-500.0,0.00014061,2]
[398069600,1765354250429,-500.0,0.00014061,2]
[398069601,1765354250438,-615.39,0.00014061,2]
[398069602,1765354250447,-500.0,0.00014061,2]
[398069603,1765354250456,-500.0,0.00014061,2]
[398069604,1765354250466,-510.57568041,0.00014061,2]
[398069605,1765354250476,-372.84185106,0.00014061,2]
[398069606,1765354250485,-608.93061847,0.00014061,2]
[398069607,1765354250495,-500.0,0.00014061,2]
[398069608,1765354250505,-273.01997341,0.00014061,2]
[398069609,1765354250514,-500.0,0.00014061,2]
[398069610,1765354250524,-476.65958457,0.00014061,2]
[398069611,1765354250534,-521.42,0.00014061,2]
[398069612,1765354250543,-500.0,0.00014061,2]
[398069613,1765354250553,-500.0,0.00014061,2]
[398069614,1765354250562,-500.0,0.00014061,2]
[398069615,1765354250573,-500.0,0.00014061,2]
[398069616,1765354250583,-500.0,0.00014061,2]
[398069617,1765354250594,-500.0,0.00014061,2]
[398069618,1765354250604,-654.09,0.00014061,2]
[398069619,1765354250613,-500.0,0.00014061,2]
[398069620,1765354250625,-500.0,0.00014061,2]
[398069621,1765354250637,-500.0,0.00014061,2]
[398069622,1765354250646,-500.0,0.00014061,2]
[398069623,1765354250656,-500.0,0.00014061,2]
[398069624,1765354250665,-500.0,0.00014061,2]
[398069625,1765354250675,-500.0,0.00014061,2]
[398069626,1765354250684,-835.3,0.00014061,2]
[398069627,1765354250694,-790.49,0.00014061,2]
[398069628,1765354250703,-443.40802157,0.00014061,2]
[398069629,1765354250711,-702.66,0.00014061,2]
[398069630,1765354250721,-505.39,0.00014061,2]
[398069631,1765354250730,-500.0,0.00014061,2]
[398069632,1765354250739,-500.0,0.00014061,2]
[398069633,1765354250757,-500.0,0.00014061,2]
[398069634,1765354250773,-500.0,0.00014061,2]
[398069635,1765354250787,-500.0,0.00014061,2]
[398069636,1765354250802,-500.0,0.00014061,2]
[398069637,1765354250816,-547.73522672,0.00014061,2]
[398069638,1765354250832,-500.0,0.00014061,2]
[398069639,1765354250845,-500.0,0.00014061,2]
[398069640,1765354250858,-515.3382102,0.00014061,2]
[398069641,1765354250874,-500.0,0.00014061,2]
[398069642,1765354250890,-500.0,0.00014061,2]
[398069643,1765354250906,-500.0,0.00014061,2]
[398069644,1765354250921,-500.0,0.00014061,2]
[398069645,1765354250937,-500.0,0.00014061,2]
[398069646,1765354250953,-500.0,0.00014061,2]
[398069647,1765354250967,-500.0,0.00014061,2]
[398069648,1765354250981,-500.0,0.00014061,2]
[398069649,1765354250997,-500.0,0.00014061,2]
[398069650,1765354251010,-567.17693643,0.00014061,2]
[398069651,1765354251024,-500.0,0.00014061,2]
[398069652,1765354251035,-581.17,0.00014061,2]
[398069653,1765354251049,-500.0,0.00014061,2]
[398069654,1765354251066,-500.0,0.00014061,2]
[398069655,1765354251077,-500.0,0.00014061,2]
[398069656,1765354251089,-500.0,0.00014061,2]
[398069657,1765354251105,-518.27,0.00014061,2]
[398069658,1765354251118,-157.34608781,0.00014061,2]
[398069659,1765354251130,-500.0,0.00014061,2]
[398069660,1765354251143,-500.0,0.00014061,2]
[398069661,1765354251161,-500.0,0.00014061,2]
[398069662,1765354251175,-500.0,0.00014061,2]
[398069663,1765354251188,-500.0,0.00014061,2]
[398069664,1765354251201,-500.0,0.00014061,2]
[398069665,1765354251216,-500.0,0.00014061,2]
[398069666,1765354251241,-500.0,0.00014061,2]
[398069667,1765354251260,-500.0,0.00014061,2]
[398069668,1765354251277,-1933.1,0.00014061,2]
[398069669,1765354251293,-500.0,0.00014061,2]
[398069670,1765354251308,-500.0,0.00014061,2]
[398069671,1765354251323,-371.34046841,0.00014061,2]
[398069672,1765354251339,-507.77,0.00014061,2]
[398069673,1765354251354,-523.1,0.00014061,2]
[398069674,1765354251368,-500.0,0.00014061,2]
[398069675,1765354251383,-1217.96,0.00014061,2]
[398069676,1765354251397,-500.0,0.00014061,2]
[398069677,1765354251412,-500.0,0.00014061,2]
[398069678,1765354251425,-500.0,0.00014061,2]
[398069679,1765354251439,-500.0,0.00014061,2]
[398069680,1765354251453,-500.0,0.00014061,2]
[398069681,1765354251467,-298.19567663,0.00014061,2]
[398069682,1765354251480,-500.0,0.00014061,2]
[398069683,1765354251494,-500.0,0.00014061,2]
[398069684,1765354251508,-500.0,0.00014061,2]
[398069685,1765354251522,-500.0,0.00014061,2]
[398069686,1765354251537,-500.0,0.00014061,2]
[398069687,1765354251550,-500.0,0.00014061,2]
[398069688,1765354251564,-560.56939498,0.00014061,2]
[398069689,1765354251576,-500.0,0.00014061,2]
[398069690,1765354251590,-500.0,0.00014061,2]
[398069691,1765354251603,-500.0,0.00014061,2]
[398069692,1765354251616,-500.0,0.00014061,2]
[398069693,1765354251631,-500.0,0.00014061,2]
[398069694,1765354251645,-500.0,0.00014061,2]
[398069695,1765354251659,-500.0,0.00014061,2]
[398069696,1765354251672,-553.33,0.00014061,2]
[398069697,1765354251686,-500.0,0.00014061,2]
[398069698,1765354251699,-500.0,0.00014061,2]
[398069699,1765354251712,-500.0,0.00014061,2]
[398069700,1765354251726,-692.94,0.00014061,2]
[398069701,1765354251749,-500.0,0.00014061,2]
[398069702,1765354251766,-492.97672049,0.00014061,2]
[398069703,1765354251782,-500.0,0.00014061,2]
[398069704,1765354251799,-500.0,0.00014061,2]
[398069705,1765354251815,-500.0,0.00014061,2]
[398069706,1765354251830,-513.81694351,0.00014061,2]
[398069707,1765354251846,-802.04,0.00014061,2]
[398069708,1765354251861,-500.0,0.00014061,2]
[398069709,1765354251875,-500.0,0.00014061,2]
[398069710,1765354251889,-500.0,0.00014061,2]
[398069711,1765354251904,-539.56324415,0.00014061,2]
[398069712,1765354251918,-500.0,0.00014061,2]
[398069713,1765354251931,-854.37,0.00014061,2]
[398069714,1765354251946,-500.0,0.00014061,2]
[398069715,1765354251959,-560.08889557,0.00014061,2]
[398069716,1765354251973,-500.0,0.00014061,2]
[398069717,1765354251987,-540.48462382,0.00014061,2]
[398069718,1765354252000,-500.0,0.00014061,2]
[398069719,1765354252014,-538.46,0.00014061,2]
[398069720,1765354252027,-500.0,0.00014061,2]
[398069721,1765354252041,-500.0,0.00014061,2]
[398069722,1765354252055,-500.0,0.00014061,2]
[398069723,1765354252069,-500.0,0.00014061,2]
[398069724,1765354252083,-500.0,0.00014061,2]
[398069725,1765354252097,-561.58,0.00014061,2]
[398069726,1765354252111,-500.0,0.00014061,2]
[398069727,1765354252125,-621.74,0.00014061,2]
[398069728,1765354252138,-500.0,0.00014061,2]
[398069729,1765354252152,-500.0,0.00014061,2]
[398069730,1765354252165,-500.0,0.00014061,2]
[398069731,1765354252179,-500.0,0.00014061,2]
[398069732,1765354252192,-500.0,0.00014061,2]
[398069733,1765354252207,-500.0,0.00014061,2]
[398069734,1765354252220,-500.0,0.00014061,2]
[398069735,1765354252234,-500.0,0.00014061,2]
[398069736,1765354252247,-500.0,0.00014061,2]
[398069737,1765354252260,-500.0,0.00014061,2]
[398069738,1765354252273,-500.0,0.00014061,2]
[398069739,1765354252286,-500.0,0.00014061,2]
[398069740,1765354252299,-500.0,0.00014061,2]
[398069741,1765354252312,-500.0,0.00014061,2]
[398069742,1765354252325,-500.0,0.00014061,2]
[398069743,1765354252338,-500.0,0.00014061,2]
[398069744,1765354252352,-500.0,0.00014061,2]
[398069745,1765354252366,-500.0,0.00014061,2]
[398069746,1765354252380,-500.0,0.00014061,2]
[398069747,1765354252395,-500.0,0.00014061,2]
[398069748,1765354252410,-500.0,0.00014061,2]
[398069749,1765354252424,-20008.89168532,0.00014062,2]
[398069750,1765354252446,-368.14700699,0.00014062,2]
[398069751,1765354252465,-1505.11012051,0.00014062,2]
[398069752,1765354253600,-565.75319037,0.00014062,2]
[398069753,1765354253617,-259.90101775,0.00014062,2]
[398069754,1765354253639,-1859.17475675,0.00014062,2]
[398069755,1765354253651,-1287.19001,0.00014062,2]
[398069756,1765354253675,-806.29402968,0.00014062,2]
[398069757,1765354253689,-1201.41851284,0.00014062,2]
[398069758,1765355318562,196.13256283,0.00010001,2]
[398069759,1765355318599,219.46687473,0.00010001,2]
[398069767,1765355432286,-255.0,0.00012755,2]
[398069768,1765355432298,-624.4,0.00012755,2]
[398069769,1765355432308,-300.0,0.00012801,2]
[398069770,1765355432318,-300.0,0.0001284,2]
[398069771,1765355432328,-346.70475703,0.0001284,2]
[398069772,1765355432338,-1196.69,0.00012848,2]
[398069773,1765355432349,-150.0,0.00012857,2]
[398069774,1765355432359,-300.0,0.0001287,2]
[398069775,1765355432369,-1200.0,0.0001287,2]
[398069776,1765355432379,-150.0,0.00012871,2]
[398069777,1765355432389,-150.0,0.00012871,2]
[398069778,1765355432399,-150.0,0.00012871,2]
[398069779,1765355432408,-150.0,0.00012871,2]
[398069780,1765355432419,-150.0,0.00012871,2]
[398069781,1765355432429,-150.0,0.00012871,2]
[398069782,1765355432438,-150.0,0.00012871,2]
[398069783,1765355432447,-150.30840032,0.00012871,2]
[398069784,1765355432458,-150.4783543,0.00012871,2]
[398069785,1765355432468,-150.0,0.00012871,2]
[398069786,1765355432478,-150.41457453,0.00012871,2]
[398069787,1765355432488,-150.0,0.00012871,2]
[398069788,1765355432499,-150.0,0.00012871,2]
[398069789,1765355432508,-254.17,0.00012899,3]
[398069790,1765355432518,-200.0,0.00013062,2]
[398069791,1765355432527,-150.0,0.00013348,2]
[398069792,1765355432538,-150.0,0.00013586,2]
[398069793,1765355432548,-198.79,0.00013596,2]
[398069794,1765355432557,-150.8,0.000136,2]
[398069796,1765355432567,-1488.0,0.00013603,2]
[398069797,1765355432577,-578.20924308,0.00013609,2]
[398069798,1765355432587,-200.0,0.00013609,2]
[398069799,1765355432596,-207.4,0.00013609,2]
[398069800,1765355432606,-215.0738,0.00013609,2]
[398069801,1765355432615,-223.0315306,0.00013609,2]
[398069802,1765355432625,-231.28369723,0.00013609,2]
[398069803,1765355432634,-239.84119403,0.00013609,2]
[398069804,1765355432644,-248.71531821,0.00013609,2]
[398069805,1765355432653,-485.0,0.00013664,2]
[398069806,1765355432663,-166.66,0.00013699,2]
[398069807,1765355432672,-485.0,0.00013719,2]
[398069808,1765355432682,-181.07,0.00013744,2]
[398069809,1765355432691,-181.07,0.00013744,2]
[398069810,1765355432701,-151.0,0.00013751,2]
[398069811,1765355432710,-150.0,0.00013752,2]
[398069812,1765355432720,-485.0,0.00013752,2]
[398069813,1765355432730,-500.0,0.00013753,2]
[398069814,1765355432740,-230.74235974,0.00013753,2]
[398069815,1765355432750,-500.0,0.00013753,2]
[398069816,1765355432760,-248.28407124,0.00013753,2]
[398069817,1765355432770,-500.0,0.00013753,2]
[398069818,1765355432781,-500.0,0.00013753,2]
[398069819,1765355432790,-500.0,0.00013753,2]
[398069820,1765355432800,-500.0,0.00013753,2]
[398069821,1765355432810,-500.0,0.00013753,2]
[398069822,1765355432820,-500.0,0.00013753,2]
[398069823,1765355432830,-500.0,0.00013753,2]
[398069824,1765355432840,-500.0,0.00013753,2]
[398069825,1765355432850,-500.0,0.00013753,2]
[398069826,1765355433126,-494.5601158,0.00013753,2]
[398069827,1765355433136,-500.0,0.00013753,2]
[398069828,1765355433146,-500.0,0.00013753,2]
[398069829,1765355433156,-500.0,0.00013753,2]
[398069830,1765355433165,-500.0,0.00013753,2]
[398069831,1765355433175,-500.0,0.00013753,2]
[398069832,1765355433184,-500.0,0.00013753,2]
[398069833,1765355433194,-100383.96988518,0.00013754,2]
[398069834,1765355433208,-3215.0640916,0.00013754,2]
[398069835,1765355433220,-787.27893922,0.00013754,2]
[398069836,1765355433231,-1309.68764366,0.00013754,2]
[398069837,1765355433243,-2539.66725529,0.00013754,2]
[398069838,1765355433254,-540.54142778,0.00013754,2]
[398069839,1765355433269,-477.95056593,0.00013754,2]
[398069840,1765355433284,-2178.95589453,0.00013754,2]
[398069841,1765355433296,-514.27175674,0.00013754,2]
[398069842,1765355433321,-827.08473548,0.00013754,2]
[398069843,1765355433331,-2389.94928522,0.00013754,2]
[398069844,1765355433357,-398.75749433,0.00013754,2]
[398069845,1765355433368,-448.54201431,0.00013754,2]
[398069846,1765355433408,-4953.798,0.00013754,2]
[398069847,1765355433423,-482.13,0.00013754,2]
[398069848,1765355438489,-401.00000003,0.00013753,2]
[398069849,1765355438501,-98.99999997,0.00013753,2]
[398069850,1765355438510,-175.98081227,0.00013753,2]
[398069851,1765355438520,-234.59633923,0.00013753,2]
[398069852,1765355438562,-265.40366077,0.00013753,2]
[398069853,1765355438573,-500.0,0.00013753,2]
[398069854,1765355438583,-2342.59633923,0.00013754,2]
[398069855,1765355438594,-108722.84602259,0.00013754,2]
[398069856,1765355438643,-2737.53953495,0.00013754,2]
[398069858,1765355438656,-471.87366345,0.00013754,2]
[398069861,1765355438667,-9593.36663171,0.00013754,2]
[398069879,1765355440457,-500.0,0.00013753,2]
[398069880,1765355440468,-72676.08259575,0.00013754,2]
[398069881,1765355440480,-1446.41958768,0.00013754,2]
[398069882,1765355440490,-1437.73838879,0.00013754,2]
[398069883,1765355440501,-1363.68834929,0.00013754,2]
[398069884,1765355440512,-360.11324534,0.00013754,2]
[398069885,1765355440538,-34556.35591095,0.00013754,2]
[398069886,1765355440565,-374981.850341,0.00013754,2]
[398069887,1765355440574,-485.0,0.00013784,2]
[398069888,1765355440584,-255.74,0.0001381,2]
[398069889,1765355440594,-150.0,0.00013825,2]
[398069890,1765355440604,-166.66,0.00013836,2]
[398069891,1765355440613,-485.0,0.00013839,2]
[398069892,1765355440623,-485.0,0.00013843,2]
[398069893,1765355440632,-151.0,0.00013846,2]
[398069894,1765355440642,-1000.0,0.00013846,2]
[398069895,1765355440653,-257.91778498,0.00013846,2]
[398069896,1765355440663,-485.0,0.00013858,2]
[398069897,1765355440673,-2500.0,0.00013944,2]
[398069898,1765355440684,-9276.30140228,0.00013952,2]
[398069899,1765355440694,-1000.0,0.00013953,2]
[398069900,1765355440704,-485.0,0.00013959,2]
[398069901,1765355440715,-166.66,0.00013973,2]
[398069902,1765355440725,-1215.91,0.00013973,2]
[398069903,1765355440735,-1215.91,0.00013973,2]
[398069904,1765355440745,-1215.91,0.00013973,2]
[398069905,1765355440755,-848.98,0.00013973,2]
[398069906,1765355440765,-668.55291636,0.00013978,2]
[398069907,1765355440775,-1000.0,0.00013989,2]
[398069908,1765355440786,-1000.0,0.00013989,2]
[398069909,1765355440795,-1000.0,0.00013989,2]
[398069910,1765355440806,-1000.0,0.00013989,2]
[398069911,1765355440815,-1000.0,0.00013989,2]
[398069912,1765355440825,-1000.0,0.00013989,2]
[398069913,1765355440835,-1000.0,0.00013998,3]
[398069914,1765355440844,-2431.52,0.00014,2]
[398069915,1765355440854,-463.69,0.00014,2]
[398069916,1765355440864,-500.0,0.00014027,2]
[398069917,1765355440873,-500.0,0.00014027,2]
[398069919,1765355440882,-500.0,0.00014027,2]
[398069921,1765355440892,-500.0,0.00014027,2]
[398069923,1765355440902,-500.0,0.00014027,2]
[398069925,1765355440911,-500.0,0.00014027,2]
[398069927,1765355440921,-500.0,0.00014027,2]
[398069929,1765355440930,-500.0,0.00014027,2]
[398069931,1765355440939,-500.0,0.00014027,2]
[398069932,1765355440948,-500.0,0.00014027,2]
[398069933,1765355440957,-500.0,0.00014027,2]
[398069934,1765355440966,-174.96818396,0.00014027,2]
[398069935,1765355440975,-195.0,0.00014031,2]
[398069936,1765355440985,-300.0,0.00014031,2]
[398069937,1765355440995,-243.3385266,0.00014031,2]
[398069938,1765355441004,-500.0,0.00014044,2]
[398069939,1765355441016,-500.0,0.00014044,2]
[398069940,1765355441025,-201.44293728,0.00014044,2]
[398069941,1765355441034,-500.0,0.00014044,2]
[398069942,1765355441043,-500.0,0.00014044,2]
[398069943,1765355441052,-317.97791297,0.00014044,2]
[398069944,1765355441062,-500.0,0.00014044,2]
[398069945,1765355441071,-500.0,0.00014044,2]
[398069946,1765355441080,-500.0,0.00014044,2]
[398069947,1765355441089,-194.72792766,0.00014044,2]
[398069948,1765355441099,-533.88981491,0.00014044,2]
[398069949,1765355441108,-670.80278926,0.00014044,2]
[398069951,1765355441117,-1000.0,0.00014044,2]
[398069952,1765355441126,-1000.0,0.00014044,2]
[398069953,1765355441136,-1000.0,0.00014044,2]
[398069954,1765355441145,-1000.0,0.00014044,2]
[398069955,1765355441155,-1000.0,0.00014044,2]
[398069956,1765355441164,-1000.0,0.00014044,2]
[398069957,1765355441174,-1000.0,0.00014044,2]
[398069958,1765355441184,-1000.0,0.00014044,2]
[398069959,1765355441194,-1000.0,0.00014044,2]
[398069960,1765355441203,-1000.0,0.00014044,2]
[398069961,1765355441212,-1000.0,0.00014044,2]
[398069962,1765355441222,-1000.0,0.00014044,2]
[398069963,1765355441232,-1000.0,0.00014044,2]
[398069964,1765355441242,-1000.0,0.00014044,2]
[398069965,1765355441251,-1000.0,0.00014044,2]
[398069966,1765355441260,-1000.0,0.00014044,2]
[398069967,1765355441273,-250.0,0.00014044,2]
[398069968,1765355441282,-250.0,0.00014044,2]
[398069969,1765355441292,-1000.0,0.00014044,2]
[398069970,1765355441302,-250.0,0.00014044,2]
[398069971,1765355441311,-1000.0,0.00014044,2]
[398069972,1765355441321,-250.0,0.00014044,2]
[398069973,1765355441331,-1000.0,0.00014044,2]
[398069974,1765355441340,-500.0,0.00014044,2]
[398069975,1765355441349,-250.0,0.00014044,2]
[398069976,1765355441358,-1000.0,0.00014044,2]
[398069977,1765355441368,-500.0,0.00014044,2]
[398069978,1765355441377,-250.0,0.00014044,2]
[398069979,1765355441387,-1000.0,0.00014044,2]
[398069980,1765355441396,-500.0,0.00014044,2]
[398069981,1765355441406,-250.0,0.00014044,2]
[398069982,1765355441415,-1000.0,0.00014044,2]
[398069983,1765355441425,-500.0,0.00014044,2]
[398069984,1765355441434,-250.0,0.00014044,2]
[398069985,1765355441444,-1000.0,0.00014044,2]
[398069986,1765355441453,-500.0,0.00014044,2]
[398069987,1765355441463,-250.0,0.00014044,2]
[398069988,1765355441472,-1000.0,0.00014044,2]
[398069989,1765355441481,-318.17855093,0.00014044,2]
[398069990,1765355441491,-250.0,0.00014044,2]
[398069991,1765355441500,-1000.0,0.00014044,2]
[398069992,1765355441510,-151.0,0.00014044,2]
[398069993,1765355441519,-250.0,0.00014044,2]
[398069994,1765355441528,-1000.0,0.00014044,2]
[398069995,1765355441537,-151.0,0.00014044,2]
[398069996,1765355441547,-250.0,0.00014044,2]
[398069997,1765355441556,-151.0,0.00014044,2]
[398069998,1765355441565,-250.0,0.00014044,2]
[398069999,1765355441575,-151.0,0.00014044,2]
[398070000,1765355441584,-151.0,0.00014044,2]
[398070001,1765355441594,-151.0,0.00014044,2]
[398070002,1765355441603,-151.0,0.00014044,2]
[398070003,1765355441613,-151.0,0.00014044,2]
[398070004,1765355441622,-151.0,0.00014044,2]
[398070005,1765355441633,-151.0,0.00014044,2]
[398070006,1765355441643,-151.0,0.00014044,2]
[398070007,1765355441653,-158.60499297,0.00014044,2]
[398070008,1765355441662,-200.0,0.00014044,2]
[398070009,1765355441672,-779.1,0.0001405,2]
[398070010,1765355441682,-653.31,0.0001405,2]
[398070011,1765355441692,-500.0,0.0001405,2]
[398070012,1765355441702,-500.0,0.0001405,2]
[398070013,1765355441711,-500.0,0.0001405,2]
[398070014,1765355441721,-500.0,0.0001405,2]
[398070015,1765355441730,-562.69,0.0001405,2]
[398070016,1765355441739,-500.0,0.0001405,2]
[398070017,1765355441749,-500.0,0.0001405,2]
[398070018,1765355441758,-500.0,0.0001405,2]
[398070019,1765355441769,-691.23,0.0001405,2]
[398070020,1765355441779,-500.0,0.0001405,2]
[398070021,1765355441789,-553.67,0.0001405,2]
[398070022,1765355441799,-505.02,0.0001405,2]
[398070023,1765355441809,-500.0,0.0001405,2]
[398070024,1765355441819,-515.48,0.0001405,2]
[398070025,1765355441829,-500.0,0.0001405,2]
[398070026,1765355441839,-500.0,0.0001405,2]
[398070027,1765355441849,-602.53,0.0001405,2]
[398070028,1765355441859,-500.0,0.0001405,2]
[398070029,1765355441869,-500.0,0.0001405,2]
[398070030,1765355441879,-500.0,0.0001405,2]
[398070031,1765355441889,-500.0,0.0001405,2]
[398070032,1765355441899,-1416.75,0.0001405,2]
[398070033,1765355441910,-500.0,0.0001405,2]
[398070034,1765355441919,-507.49,0.0001405,2]
[398070035,1765355441929,-500.0,0.0001405,2]
[398070036,1765355441938,-500.0,0.0001405,2]
[398070037,1765355441949,-500.0,0.0001405,2]
[398070038,1765355441959,-500.0,0.0001405,2]
[398070039,1765355441968,-500.0,0.0001405,2]
[398070040,1765355441987,-500.0,0.0001405,2]
[398070041,1765355441999,-572.62,0.0001405,2]
[398070042,1765355442009,-500.0,0.0001405,2]
[398070043,1765355442018,-693.09,0.0001405,2]
[398070044,1765355442028,-519.95,0.0001405,2]
[398070045,1765355442039,-778.18,0.0001405,2]
[398070046,1765355442049,-772.65,0.0001405,2]
[398070047,1765355442060,-564.46,0.0001405,2]
[398070048,1765355442070,-500.0,0.0001405,2]
[398070049,1765355442080,-703.09,0.0001405,2]
[398070050,1765355442090,-550.91856451,0.0001405,2]
[398070051,1765355442100,-656.24,0.0001405,2]
[398070052,1765355442110,-500.0,0.0001405,2]
[398070053,1765355442121,-556.41,0.0001405,2]
[398070054,1765355442130,-500.0,0.0001405,2]
[398070055,1765355442140,-689.88,0.0001405,2]
[398070056,1765355442151,-500.0,0.0001405,2]
[398070057,1765355442162,-500.0,0.0001405,2]
[398070058,1765355442172,-500.0,0.0001405,2]
[398070059,1765355442182,-1905.21,0.0001405,2]
[398070060,1765355442193,-500.0,0.0001405,2]
[398070061,1765355442203,-500.0,0.0001405,2]
[398070062,1765355442213,-553.03,0.0001405,2]
[398070063,1765355442223,-522.44,0.0001405,2]
[398070064,1765355442233,-500.0,0.0001405,2]
[398070065,1765355442243,-500.0,0.0001405,2]
[398070066,1765355442256,-500.0,0.0001405,2]
[398070067,1765355442269,-204.78202809,0.0001405,2]
[398070068,1765355442279,-734.74,0.0001405,2]
[398070069,1765355442289,-500.0,0.0001405,2]
[398070070,1765355442299,-2699.03,0.0001405,2]
[398070071,1765355442308,-700.52,0.0001405,2]
[398070072,1765355442317,-500.0,0.0001405,2]
[398070073,1765355442328,-690.44,0.0001405,2]
[398070074,1765355442338,-618.47,0.0001405,2]
[398070075,1765355442347,-3053.55,0.0001405,2]
[398070076,1765355442360,-661.15,0.0001405,2]
[398070077,1765355442371,-500.0,0.0001405,2]
[398070078,1765355442381,-166.01061953,0.0001405,2]
[398070079,1765355442391,-500.0,0.0001405,2]
[398070080,1765355442401,-1740.5,0.0001405,2]
[398070081,1765355442411,-629.12,0.0001405,2]
[398070082,1765355442420,-500.0,0.0001405,2]
[398070083,1765355442429,-500.0,0.0001405,2]
[398070084,1765355442439,-962.64,0.0001405,2]
[398070085,1765355442448,-500.0,0.00014051,2]
[398070086,1765355442459,-500.0,0.00014051,2]
[398070087,1765355442469,-500.0,0.00014051,2]
[398070088,1765355442479,-500.0,0.00014051,2]
[398070089,1765355442488,-500.0,0.00014051,2]
[398070090,1765355442498,-500.0,0.00014051,2]
[398070091,1765355442508,-533.51,0.00014051,2]
[398070092,1765355442517,-516.54,0.00014051,2]
[398070093,1765355442527,-166.27650027,0.00014051,2]
[398070094,1765355442537,-542.46,0.00014051,2]
[398070095,1765355442550,-500.0,0.00014051,2]